[Event "17th Prague Open 2018"]
[Site "Prague"]
[Date "2018.01.19"]
[Round "9"]
[White "Akshat, Khamparia"]
[Black "Schippers, Maurice"]
[Result "1-0"]
[ECO "A61"]
[WhiteElo "2381"]
[BlackElo "2309"]
[Annotator "NA"]
[PlyCount "141"]
[EventDate "2018.??.??"]
[EventType "swiss"]
[EventCountry "CZE"]
[SourceTitle "playchess.com"]
[Source "ChessBase"]
[SourceQuality "1"]
[TimeControl "40/5400+30:1800+30"]

1. d4 {[%emt 0:00:41]} Nf6 {[%emt 0:00:05]} 2. c4 {[%emt 0:00:09]} c5 {[%emt 0:00:16]} 3. d5 {[%emt 0:00:07]} e6 {[%emt 0:00:04]} 4. Nc3 {[%emt 0:00:27]} exd5 {[%emt 0:00:31]} 5. cxd5 {[%emt 0:00:06]} d6 {[%emt 0:00:13]} 6. Nf3 {[%emt 0:00:36] LiveBook: 7759 Games} g6 {[%emt 0:01:26]} 7. Bf4 {[%emt 0:03:39]} a6 {[%emt 0:02:43]} 8. a4 {[%emt 0:00:14]} Bg7 {[%emt 0:00:53]} 9. h3 {[%emt 0:00:05]} O-O {[%emt 0:00:40]} 10. e3 {[%emt 0:00:04]} Qe7 {[%emt 0:02:47] A61: Modern Benoni: Nf3 without early e4} 11. Be2 {[%emt 0:01:29]} Nbd7 {[%emt 0:01:45]} 12. O-O {[%emt 0:02:42]} Rb8 {[%emt 0:03:51]} 13. Nd2 {[%emt 0:02:35]} Ne5 {[%emt 0:05:34]} 14. Bh2 {[%emt 0:02:41] [#]} Bd7 $146 {[%emt 0:15:05]} ({Find the theoretical novelty and annotate with similar games:} 14... Ne8 15. f4 Nd3 16. e4 Bd4+ 17. Kh1 {0-1 (37) Bocharov,D (2609)-Inarkiev,E (2686) Apatity 2011}) 15. Re1 {[%emt 0:24:18]} b5 {[%emt 0:10:30]} 16. f4 {[%emt 0:03:07]} Nc4 {[%emt 0:04:10]} 17. Bxc4 {[%emt 0:07:27]} bxc4 {[%emt 0:00:04]} 18. e4 {[%emt 0:04:55]} Rxb2 {[%emt 0:03:11]} 19. e5 {[%emt 0:01:57]} Ne8 {[%emt 0:02:30]} 20. Nxc4 {[%emt 0:01:25]} Rb4 {[%emt 0:04:00]} 21. Qe2 {[%emt 0:02:14]} g5 {[%emt 0:10:21]} 22. fxg5 {[%emt 0:09:12]} Bf5 $16 {[%emt 0:07:56]} 23. Ra3 {[%emt 0:07:15]} Qxg5 {[%emt 0:03:58]} 24. Na2 {[%emt 0:01:03]} Rb1 {[%emt 0:02:37]} 25. Rxb1 {[%emt 0:02:15]} Bxb1 {[%emt 0:00:02]} 26. Rg3 {[%emt 0:00:27]} Qe7 {[%emt 0:02:20]} 27. Nc3 {[%emt 0:00:40]} Bg6 {[%emt 0:00:23]} 28. exd6 {[%emt 0:02:22]} Bd4+ {[%emt 0:04:13]} 29. Kh1 {[%emt 0:02:16]} Qd8 {[%emt 0:03:03]} 30. Qe7 {[%emt 0:02:27]} Ng7 {[%emt 0:00:19]} 31. Rf3 {[%emt 0:04:27]} Nf5 {[%emt 0:02:00]} 32. Qxd8 {[%emt 0:01:08]} Rxd8 {[%emt 0:00:01]} 33. Ne2 {[%emt 0:01:04]} Bg7 {[%emt 0:01:22]} 34. Rb3 {[%emt 0:02:21]} Nd4 {[%emt 0:00:58]} 35. Nxd4 {[%emt 0:02:34]} cxd4 {[%emt 0:00:01]} 36. d7 {[%emt 0:02:12]} Bf6 {[%emt 0:01:31]} 37. Rb8 {[%emt 0:02:42]} Bf5 {[%emt 0:01:39]} 38. Rb6 {[%emt 0:01:57]} Kg7 {[%emt 0:01:30]} 39. Nd6 {[%emt 0:01:10]} Bxd7 {[%emt 0:01:11]} 40. Ne4 {[%emt 0:00:10]} Be7 {[%emt 0:34:11]} 41. Be5+ {[%emt 0:01:26]} f6 {[%emt 0:00:00]} 42. Bxd4 {[%emt 0:10:28]} Bxa4 {[%emt 0:00:00]} 43. Rxa6 {[%emt 0:03:34]} Bc2 {[%emt 0:00:00]} 44. Ra7 {[%emt 0:04:16]} Rxd5 {[%emt 0:00:00]} 45. Rxe7+ {[%emt 0:03:22]} Kf8 {[%emt 0:00:00]} 46. Bxf6 {[%emt 0:01:31]} Rf5 {[%emt 0:00:00]} 47. Bh4 {[%emt 0:05:53]} Rh5 {[%emt 0:00:00]} 48. Bf6 {[%emt 0:01:41]} Rf5 {[%emt 0:00:00]} 49. Rxh7 {[%emt 0:01:33]} Bxe4 {[%emt 0:00:00]} 50. Rh8+ {[%emt 0:00:11]} Kf7 {[%emt 0:00:00]} 51. Bh4 {[%emt 0:00:15]} Rc5 {[%emt 0:00:00]} 52. Bf2 {[%emt 0:02:13]} Rc2 {[%emt 0:00:00]} 53. Rh4 {[%emt 0:00:12]} Bc6 {[%emt 0:01:47]} 54. Rf4+ {[%emt 0:00:08]} Ke6 {[%emt 0:01:24]} 55. Kh2 {[%emt 0:00:29]} Ra2 {[%emt 0:01:47]} 56. h4 {[%emt 0:00:43]} Ke5 {[%emt 0:00:30]} 57. Rf8 {[%emt 0:00:13]} Be4 {[%emt 0:01:54]} 58. g4 {[%emt 0:00:51]} Ra3 {[%emt 0:01:09]} 59. Bg3+ {[%emt 0:00:28]} Ke6 {[%emt 0:00:33]} 60. h5 {[%emt 0:00:42]} Bf3 {[%emt 0:00:54]} 61. Kh3 {[%emt 0:00:22]} Bd1 {[%emt 0:00:32]} 62. h6 {[%emt 0:01:07]} Bc2 {[%emt 0:00:22]} 63. Kh4 {[%emt 0:00:10]} Ke7 {[%emt 0:00:32]} 64. Rf2 {[%emt 0:00:25]} Bb1 {[%emt 0:00:34]} 65. Rb2 {[%emt 0:00:17]} Bg6 {[%emt 0:00:29]} 66. Rb7+ {[%emt 0:00:57]} Kf6 {[%emt 0:00:36]} 67. h7 {[%emt 0:00:34]} Ra8 {[%emt 0:00:23]} 68. Be1 {[%emt 0:00:15]} Be4 {[%emt 0:00:36]} 69. Bc3+ {[%emt 0:00:18]} Kg6 {[%emt 0:00:28]} 70. Rg7+ {[%emt 0:00:14]} Kh6 {[%emt 0:00:02]} 71. g5# {[%emt 0:00:04]} 1-0

[Event "17th Prague Open 2018"]
[Site "Prague"]
[Date "2018.01.19"]
[Round "9"]
[White "Mihajlov, Sebastian"]
[Black "Harshini A"]
[Result "1-0"]
[ECO "D86"]
[WhiteElo "2371"]
[BlackElo "2185"]
[Annotator "NA"]
[PlyCount "57"]
[EventDate "2018.??.??"]
[EventType "swiss"]
[EventCountry "CZE"]
[SourceTitle "playchess.com"]
[Source "ChessBase"]
[SourceQuality "1"]
[TimeControl "40/5400+30:1800+30"]

1. d4 {[%emt 0:26:22]} Nf6 {[%emt 0:00:12]} 2. c4 {[%emt 0:00:04]} g6 {[%emt 0:00:08]} 3. Nc3 {[%emt 0:00:03]} d5 {[%emt 0:00:04]} 4. cxd5 {[%emt 0:00:31]} Nxd5 {[%emt 0:00:07]} 5. e4 {[%emt 0:00:03]} Nxc3 {[%emt 0:00:06]} 6. bxc3 {[%emt 0:00:03]} Bg7 {[%emt 0:00:06]} 7. Bc4 {[%emt 0:00:03]} c5 {[%emt 0:00:05]} 8. Ne2 {[%emt 0:00:04]} O-O {[%emt 0:00:10]} 9. O-O {[%emt 0:00:04]} Nc6 {[%emt 0:03:39]} 10. Be3 {[%emt 0:00:05]} Qc7 {[%emt 0:04:45]} 11. Rc1 {[%emt 0:00:26]} b6 {[%emt 0:03:36]} 12. Qd2 {[%emt 0:03:43]} Bb7 {[%emt 0:02:12] LiveBook: 39 Partien D87: Exchange Grünfeld: Classical Line: Variations without ...cxd4} 13. Rfd1 {[%emt 0:00:07]} (13. Bh6 e6 14. Bxg7 Kxg7 15. Qe3 Rfd8 16. f4 Qe7 17. Qf2 f5 18. Bd3 fxe4 19. Bxe4 Nxd4 20. cxd4 Bxe4 21. dxc5 bxc5 22. Rxc5 {0-1 (34) Bacrot,E (2706)-Vachier Lagrave,M (2682) Nancy 2012}) 13... Rad8 {[%emt 0:05:24]} 14. Bf4 {[%emt 0:03:27]} e5 {[%emt 0:02:36]} 15. Bg5 {[%emt 0:00:09]} Rd6 $146 {[%emt 0:02:09]} ({Predecessor:} 15... Rd7 16. d5 Na5 17. Bb5 Rd6 18. c4 f6 19. Bh4 Bc8 20. Bg3 {½-½ (30) Demeter,J (2006)-Krykun,Y (2351) Corund 2017}) 16. Bd5 {[%emt 0:02:48]} Rd7 {[%emt 0:16:48]} 17. dxc5 {[%emt 0:03:50]} bxc5 {[%emt 0:00:21]} 18. Qe3 {[%emt 0:00:33]} Na5 {[%emt 0:01:10]} 19. c4 {[%emt 0:00:25]} Ba6 {[%emt 0:02:37]} 20. Rd3 {[%emt 0:05:22]} Rb8 {[%emt 0:02:10]} 21. h4 {[%emt 0:05:40]} Rb4 {[%emt 0:05:31]} 22. Qd2 {[%emt 0:02:59]} Bc8 {[%emt 0:03:18]} 23. h5 {[%emt 0:04:09]} Nc6 {[%emt 0:02:00]} 24. Bh6 {[%emt 0:04:45]} Ne7 {[%emt 0:09:15]} 25. hxg6 {[%emt 0:09:37]} hxg6 $18 {[%emt 0:01:01]} 26. Rh3 {[%emt 0:06:49]} Rxd5 {[%emt 0:06:11]} 27. cxd5 {[%emt 0:00:14]} Bxh3 {[%emt 0:00:05]} 28. Bxg7 {[%emt 0:00:19]} Kxg7 {[%emt 0:00:45]} 29. Qxb4 {[%emt 0:00:07]} 1-0

[Event "17th Prague Open 2018"]
[Site "Prague"]
[Date "2018.01.19"]
[Round "9"]
[White "Szpar, Milosz"]
[Black "Krivanek, Vladimir"]
[Result "1-0"]
[ECO "B00"]
[WhiteElo "2367"]
[BlackElo "2076"]
[Annotator "NA"]
[PlyCount "95"]
[EventDate "2018.??.??"]
[EventType "swiss"]
[EventCountry "CZE"]
[SourceTitle "playchess.com"]
[Source "ChessBase"]
[SourceQuality "1"]
[TimeControl "40/5400+30:1800+30"]

1. e4 {[%emt 0:00:00]} b6 {[%emt 0:02:44]} 2. d4 {[%emt 0:00:00]} Bb7 {[%emt 0:00:07]} 3. Nc3 {[%emt 0:00:02]} e6 {[%emt 0:00:44]} 4. Nf3 {[%emt 0:03:07]} Bb4 {[%emt 0:00:40]} 5. Bd3 {[%emt 0:00:47]} Nf6 {[%emt 0:00:48]} 6. Qe2 {[%emt 0:00:21]} d5 {[%emt 0:00:45]} 7. e5 {[%emt 0:07:06] B00: Damenfianchetto, Nimzowitsch-Verteidigung} (7. exd5 Qxd5 8. O-O Bxc3 9. bxc3 Nbd7 10. c4 Qh5 11. Bf4 Rc8 12. a4 a5 13. Rab1 O-O 14. Rb5 c5 15. dxc5 Rxc5 {0-1 (29) Eljanov,P (2734)-Carlsen,M (2827) Douglas 2017}) 7... Ne4 {[%emt 0:02:09]} 8. O-O {[%emt 0:00:32]} Bxc3 {[%emt 0:02:58]} 9. bxc3 {[%emt 0:00:35]} Nxc3 {[%emt 0:01:06]} 10. Qe3 {[%emt 0:00:38]} h6 {[%emt 0:08:31]} 11. Nd2 {[%emt 0:04:56]} Qd7 $146 {[%emt 0:20:46]} ({Vorgänger:} 11... Nd7 12. a4 c5 13. Bb2 cxd4 14. Qxd4 Ne4 15. Nxe4 dxe4 16. Bb5 a6 17. Bxd7+ Qxd7 18. Qxb6 O-O 19. Ba3 Rfc8 20. Rfc1 Bd5 {½-½ (20) Cichonski,B (2067)-Buckley,G (1934) Gonzaga 2013}) 12. f4 {[%emt 0:06:26]} g6 {[%emt 0:00:31]} 13. Bb2 {[%emt 0:02:30]} Na4 {[%emt 0:00:56]} 14. Ba3 {[%emt 0:00:08]} a6 {[%emt 0:06:16]} (14... Nc3 $11) 15. c4 {[%emt 0:03:38]} dxc4 {[%emt 0:01:46]} 16. Ne4 {[%emt 0:01:32]} ({Doch nicht} 16. Nxc4 $6 Nc3 $15) 16... Bxe4 {[%emt 0:02:00]} 17. Bxe4 {[%emt 0:00:30]} Nc6 {[%emt 0:03:03]} 18. Rad1 {[%emt 0:02:59]} O-O-O {[%emt 0:04:31]} 19. d5 {[%emt 0:03:59]} Ne7 {[%emt 0:01:26]} 20. dxe6 {[%emt 0:06:22]} Qxe6 {[%emt 0:00:55]} 21. Qf3 {[%emt 0:01:47]} Kb8 {[%emt 0:07:41]} 22. Bc2 {[%emt 0:01:09]} b5 {[%emt 0:12:23]} 23. Bxa4 {[%emt 0:00:17]} Nd5 {[%emt 0:01:53]} (23... Qb6+ $16 {kämpft weiter.} 24. Qf2 Qxf2+ 25. Rxf2 Nf5) 24. Bc2 {[%emt 0:02:33]} Qb6+ {[%emt 0:00:42] [#]} 25. Kh1 $15 {[%emt 0:04:25]} (25. Qf2 $1 $16) 25... Ne3 {[%emt 0:00:14]} 26. Qf2 {[%emt 0:03:42]} Nxd1 {[%emt 0:02:57]} 27. Qxb6+ {[%emt 0:01:27]} cxb6 {[%emt 0:00:02]} 28. Rxd1 {[%emt 0:05:58]} Rxd1+ {[%emt 0:01:29]} 29. Bxd1 {[%emt 0:00:04]} a5 {[%emt 0:01:58]} 30. Bd6+ {[%emt 0:00:41]} Ka7 {[%emt 0:01:07]} 31. Kg1 {[%emt 0:01:29]} b4 {[%emt 0:00:46]} 32. Kf2 {[%emt 0:00:27]} Rc8 {[%emt 0:01:26]} 33. Ke2 {[%emt 0:03:06]} b5 {[%emt 0:00:20]} 34. Bc2 {[%emt 0:15:49]} Kb6 {[%emt 0:00:44]} 35. g4 {[%emt 0:02:17]} h5 {[%emt 0:05:49]} 36. g5 {[%emt 0:04:45]} c3 {[%emt 0:01:15]} 37. Kd3 {[%emt 0:00:54]} Rc4 {[%emt 0:00:19]} 38. Bb3 {[%emt 0:00:49]} Kc6 {[%emt 0:04:46]} 39. Bxc4 {[%emt 0:01:33]} bxc4+ {[%emt 0:00:02]} 40. Kc2 {[%emt 0:00:08]} Kb5 {[%emt 0:31:20]} 41. f5 {[%emt 0:31:02]} Kc6 {[%emt 0:00:00]} 42. Bf8 {[%emt 0:00:00]} Kd7 {[%emt 0:00:00]} 43. e6+ {[%emt 0:00:00]} Ke8 {[%emt 0:00:00]} 44. fxg6 {[%emt 0:00:00]} fxg6 {[%emt 0:00:00]} 45. Bd6 {[%emt 0:00:00]} Kd8 {[%emt 0:00:00]} 46. a4 {[%emt 0:00:00]} Kc8 {[%emt 0:00:00]} 47. Bxb4 {[%emt 0:00:00]} axb4 {[%emt 0:00:00]} 48. a5 {[%emt 0:00:00]} 1-0

[Event "17th Prague Open 2018"]
[Site "Prague"]
[Date "2018.01.19"]
[Round "9"]
[White "Nitish Belurkar"]
[Black "Moehn, Hans"]
[Result "1-0"]
[ECO "B01"]
[WhiteElo "2270"]
[BlackElo "2378"]
[Annotator "NA"]
[PlyCount "57"]
[EventDate "2018.??.??"]
[EventType "swiss"]
[EventCountry "CZE"]
[SourceTitle "playchess.com"]
[Source "ChessBase"]
[SourceQuality "1"]
[TimeControl "40/5400+30:1800+30"]

1. e4 {[%emt 0:00:00]} d5 {[%emt 0:05:48]} 2. exd5 {[%emt 0:00:00]} Qxd5 {[%emt 0:00:05]} 3. d4 {[%emt 0:00:02]} Nf6 {[%emt 0:01:06]} 4. Nf3 {[%emt 0:00:26]} Bg4 {[%emt 0:04:15]} 5. Be2 {[%emt 0:01:49]} c6 {[%emt 0:01:06]} 6. O-O {[%emt 0:02:41]} g6 {[%emt 0:06:21]} 7. h3 {[%emt 0:02:58]} Bxf3 {[%emt 0:00:06]} 8. Bxf3 {[%emt 0:00:07]} Qd8 {[%emt 0:02:33]} 9. c4 {[%emt 0:02:09]} Bg7 {[%emt 0:00:23]} 10. Nc3 {[%emt 0:00:21]} O-O {[%emt 0:00:37]} 11. Bf4 {[%emt 0:08:49]} Ne8 {[%emt 0:02:55]} 12. d5 {[%emt 0:11:32]} (12. Qb3 $16 Qxd4 13. Qxb7 Qxf4 14. Qxa8) 12... Nd6 $16 {[%emt 0:09:36]} 13. Qb3 {[%emt 0:06:27]} c5 {[%emt 0:02:07]} 14. Nb5 {[%emt 0:09:55]} b6 {[%emt 0:02:52]} 15. Rfe1 {[%emt 0:01:51]} a6 {[%emt 0:02:17]} 16. Nxd6 {[%emt 0:02:21]} exd6 {[%emt 0:00:15]} 17. Re2 {[%emt 0:00:31]} Qf6 {[%emt 0:14:33]} 18. Qe3 {[%emt 0:10:28]} h6 {[%emt 0:01:04]} 19. Bg4 {[%emt 0:07:18]} Kh7 {[%emt 0:17:29]} 20. Qg3 {[%emt 0:07:54]} Rd8 {[%emt 0:04:13]} 21. Rae1 {[%emt 0:01:18]} a5 {[%emt 0:09:03]} 22. Re7 {[%emt 0:08:27]} h5 {[%emt 0:10:46]} 23. Bf3 {[%emt 0:03:03]} Rd7 {[%emt 0:00:01]} 24. Re8 {[%emt 0:01:18]} Bh6 {[%emt 0:01:02]} 25. Bxh6 {[%emt 0:01:13]} Kxh6 {[%emt 0:00:01]} 26. Rf8 {[%emt 0:00:58]} Qxb2 {[%emt 0:02:23]} 27. Qf4+ {[%emt 0:01:43]} Kg7 {[%emt 0:00:10]} 28. Ree8 {[%emt 0:00:22]} a4 {[%emt 0:00:38]} 29. Rh8 {[%emt 0:00:10]} 1-0

[Event "17th Prague Open 2018"]
[Site "Prague"]
[Date "2018.01.19"]
[Round "9"]
[White "Makoveev, Ilya"]
[Black "Jablonicky, Martin"]
[Result "1-0"]
[ECO "B06"]
[WhiteElo "2196"]
[BlackElo "2330"]
[Annotator "NA"]
[PlyCount "35"]
[EventDate "2018.??.??"]
[EventType "swiss"]
[EventCountry "CZE"]
[SourceTitle "playchess.com"]
[Source "ChessBase"]
[SourceQuality "1"]
[TimeControl "40/5400+30:1800+30"]

1. e4 {[%emt 0:00:00]} g6 {[%emt 0:24:09]} 2. d4 {[%emt 0:00:05]} Bg7 {[%emt 0:00:05]} 3. Nc3 {[%emt 0:00:29]} d6 {[%emt 0:00:36]} 4. Nf3 {[%emt 0:01:19]} Bg4 {[%emt 0:00:26]} 5. Be3 {[%emt 0:01:34]} Nc6 {[%emt 0:01:38]} 6. d5 {[%emt 0:01:03]} Ne5 {[%emt 0:00:51]} 7. Be2 {[%emt 0:03:30]} Nxf3+ {[%emt 0:00:40]} 8. gxf3 {[%emt 0:02:42]} Bd7 {[%emt 0:05:54]} 9. Qd2 {[%emt 0:09:45]} Nf6 $11 {[%emt 0:00:37]} 10. O-O-O {[%emt 0:04:16]} c6 {[%emt 0:00:44]} 11. Kb1 {[%emt 0:29:00]} Qa5 {[%emt 0:00:39]} 12. Bh6 {[%emt 0:14:13]} O-O {[%emt 0:02:34]} 13. h4 {[%emt 0:06:11]} Rfe8 {[%emt 0:22:37]} 14. Bxg7 {[%emt 0:08:57]} Kxg7 {[%emt 0:00:06]} 15. h5 {[%emt 0:00:59]} Nxh5 {[%emt 0:03:53]} 16. Rdg1 {[%emt 0:01:48]} Kh8 {[%emt 0:01:07]} 17. Qh6 {[%emt 0:03:08]} Nf6 {[%emt 0:04:42]} 18. e5 {[%emt 0:01:00]} 1-0

[Event "17th Prague Open 2018"]
[Site "Prague"]
[Date "2018.01.19"]
[Round "9"]
[White "Solozhenkina, Elizaveta"]
[Black "Liu, Yi"]
[Result "0-1"]
[ECO "C11"]
[WhiteElo "2190"]
[BlackElo "2337"]
[Annotator "NA"]
[PlyCount "86"]
[EventDate "2018.??.??"]
[EventType "swiss"]
[EventCountry "CZE"]
[SourceTitle "playchess.com"]
[Source "ChessBase"]
[SourceQuality "1"]
[TimeControl "40/5400+30:1800+30"]

1. e4 {[%emt 0:00:00]} e6 {[%emt 0:04:36]} 2. d4 {[%emt 0:00:00]} d5 {[%emt 0:00:02]} 3. Nc3 {[%emt 0:00:00]} Nf6 {[%emt 0:00:04]} 4. e5 {[%emt 0:00:00]} Nfd7 {[%emt 0:00:04]} 5. f4 {[%emt 0:00:00]} c5 {[%emt 0:00:19]} 6. Nf3 {[%emt 0:00:00]} Nc6 {[%emt 0:00:02]} 7. Be3 {[%emt 0:00:07]} cxd4 {[%emt 0:00:20]} 8. Nxd4 {[%emt 0:00:07]} Bc5 {[%emt 0:00:02]} 9. Qd2 {[%emt 0:01:01]} O-O {[%emt 0:00:05]} 10. O-O-O {[%emt 0:00:22]} a6 {[%emt 0:00:15]} 11. Qf2 {[%emt 0:08:04]} Bxd4 {[%emt 0:00:23]} 12. Bxd4 {[%emt 0:00:05]} b5 {[%emt 0:00:05]} 13. Be3 {[%emt 0:00:11] C11: French: Classical System: 4 e5 and 4 Bg5 dxe4} Qa5 {[%emt 0:00:16]} 14. Kb1 {[%emt 0:00:28]} b4 {[%emt 0:00:11]} 15. Ne2 {[%emt 0:00:04]} Qc7 {[%emt 0:00:06]} 16. Nd4 {[%emt 0:03:29]} Nxd4 {[%emt 0:00:46] LiveBook: 19 Games} 17. Bxd4 {[%emt 0:00:04]} a5 {[%emt 0:00:07]} 18. Bb5 {[%emt 0:00:06]} Ba6 {[%emt 0:06:03]} 19. Bxd7 {[%emt 0:04:57]} Qxd7 {[%emt 0:00:52]} 20. g4 {[%emt 0:00:05]} a4 {[%emt 0:01:44] [#]} 21. f5 $146 {[%emt 0:06:15]} b3 {[%emt 0:02:43]} 22. cxb3 {[%emt 0:13:29]} axb3 {[%emt 0:01:59]} 23. a3 {[%emt 0:00:13]} Rfc8 {[%emt 0:06:15]} 24. f6 {[%emt 0:01:44]} Qc6 {[%emt 0:09:54]} 25. Rd2 {[%emt 0:07:32]} Rc7 {[%emt 0:00:15]} 26. Re1 {[%emt 0:12:07]} Rac8 {[%emt 0:00:44]} 27. Bc3 {[%emt 0:00:07] [#]} Qa4 $1 {[%emt 0:01:38]} 28. Qe3 {[%emt 0:20:18]} Rxc3 {[%emt 0:03:46]} 29. bxc3 {[%emt 0:02:18]} Qxa3 {[%emt 0:00:21]} 30. Rb2 {[%emt 0:01:20]} Ra8 $19 {[%emt 0:17:54]} 31. Kc1 {[%emt 0:00:27]} gxf6 {[%emt 0:04:15]} 32. exf6 {[%emt 0:00:36]} Kh8 {[%emt 0:00:04]} 33. g5 {[%emt 0:04:42]} Bc4 {[%emt 0:04:40]} 34. Qd2 {[%emt 0:13:08]} Qd6 {[%emt 0:02:49]} 35. Qf2 {[%emt 0:02:07]} Ra1+ {[%emt 0:01:40]} 36. Rb1 {[%emt 0:01:14]} Ra2 {[%emt 0:00:45]} 37. Qg3 {[%emt 0:00:35]} Qxg3 {[%emt 0:05:07]} 38. hxg3 {[%emt 0:00:02]} Rg2 {[%emt 0:01:22]} 39. Rh1 {[%emt 0:01:29]} e5 {[%emt 0:02:16]} 40. Rh3 {[%emt 0:00:35]} Rc2+ {[%emt 0:36:26]} 41. Kd1 {[%emt 0:30:01]} Be2+ {[%emt 0:04:09]} 42. Ke1 {[%emt 0:00:06]} b2 {[%emt 0:00:08]} 43. Rh1 {[%emt 0:00:00]} Bd3 {[%emt 0:00:00]} 0-1

[Event "17th Prague Open 2018"]
[Site "Prague"]
[Date "2018.01.19"]
[Round "9"]
[White "Storme, Isak"]
[Black "Kaasen, Tor Fredrik"]
[Result "0-1"]
[ECO "E81"]
[WhiteElo "2171"]
[BlackElo "2340"]
[Annotator "NA"]
[PlyCount "106"]
[EventDate "2018.??.??"]
[EventType "swiss"]
[EventCountry "CZE"]
[SourceTitle "playchess.com"]
[Source "ChessBase"]
[SourceQuality "1"]
[TimeControl "40/5400+30:1800+30"]

1. d4 {[%emt 0:00:00]} Nf6 {[%emt 0:06:02]} 2. c4 {[%emt 0:00:00]} g6 {[%emt 0:00:16]} 3. Nc3 {[%emt 0:00:00]} Bg7 {[%emt 0:00:04]} 4. e4 {[%emt 0:00:05]} d6 {[%emt 0:00:05]} 5. f3 {[%emt 0:00:07]} O-O {[%emt 0:00:54]} 6. Be3 {[%emt 0:00:07]} c6 {[%emt 0:08:04]} 7. Qd2 {[%emt 0:02:44]} Nbd7 {[%emt 0:02:42]} 8. Nge2 {[%emt 0:01:50]} a6 {[%emt 0:00:48]} 9. g4 {[%emt 0:01:29]} e5 {[%emt 0:03:26]} 10. d5 {[%emt 0:04:13]} cxd5 {[%emt 0:01:07]} 11. cxd5 {[%emt 0:01:45]} b5 {[%emt 0:00:40] E89: King's Indian: Sämisch: 6...e5 7 d5 c6 8 Nge2 cxd5} (11... h5 12. g5 Nh7 13. Nc1 f6 14. gxf6 Rxf6 15. Be2 Nc5 16. b4 Nd7 17. Nb3 Rf4 18. O-O-O Qf6 19. Kb1 Ng5 20. Bxf4 exf4 {1-0 (44) Bocharov,D (2602)-Fedorov,A (2565) Voronezh 2016}) 12. a3 {[%emt 0:01:09]} Rb8 $146 {[%emt 0:07:48]} (12... Nc5 $11 13. Qc2 Bd7) ({Find the theoretical novelty and annotate with similar games:} 12... Nb6 13. Ng3 Nfd7 14. h4 Nc5 15. Bxc5 dxc5 16. h5 Bf6 17. hxg6 fxg6 18. Qh2 Ra7 {0-1 (53) Takeda,L-Feliciano Ebert,V (2156) Santos 2010}) 13. Ng3 {[%emt 0:01:33]} Nc5 {[%emt 0:00:20]} 14. Qc2 {[%emt 0:05:37]} Qc7 {[%emt 0:06:45]} (14... Na4 $14) 15. b4 {[%emt 0:06:35]} Ncxe4 {[%emt 0:11:14]} 16. fxe4 {[%emt 0:02:17]} (16. Ngxe4 $16 Nxe4 17. fxe4) 16... Nxg4 {[%emt 0:00:30]} 17. Bd2 {[%emt 0:02:18]} f5 {[%emt 0:04:05]} 18. exf5 $2 {[%emt 0:11:35]} (18. h3 $14 {stays ahead.} Nh6 19. Qd3) 18... Qa7 {[%emt 0:07:47]} 19. O-O-O {[%emt 0:14:38]} gxf5 {[%emt 0:02:30]} 20. Nh5 {[%emt 0:07:35]} Rb7 $11 {[%emt 0:14:54]} 21. Nxg7 {[%emt 0:07:22]} Rxg7 {[%emt 0:00:38]} 22. Be2 {[%emt 0:02:19]} f4 {[%emt 0:01:34]} 23. Rhg1 {[%emt 0:09:39]} Bf5 {[%emt 0:17:17]} 24. Bd3 {[%emt 0:00:27]} Bxd3 {[%emt 0:00:52]} 25. Qxd3 {[%emt 0:00:06]} Nf2 {[%emt 0:00:04]} 26. Rxg7+ {[%emt 0:00:11]} Qxg7 {[%emt 0:00:01]} 27. Qf3 {[%emt 0:01:07]} Nxd1 {[%emt 0:00:05]} 28. Kxd1 {[%emt 0:01:09]} Qg1+ {[%emt 0:00:40]} 29. Kc2 {[%emt 0:00:04]} h5 {[%emt 0:00:36]} 30. Qxh5 {[%emt 0:01:22]} Qg2 {[%emt 0:02:06]} 31. Qh6 {[%emt 0:04:54]} f3 {[%emt 0:01:13]} 32. Qe6+ {[%emt 0:01:09]} Rf7 {[%emt 0:00:24]} 33. Ne4 {[%emt 0:00:23]} f2 {[%emt 0:00:57]} 34. Nf6+ {[%emt 0:04:29]} Kg7 {[%emt 0:00:01]} 35. Nh5+ {[%emt 0:04:30]} Kh8 {[%emt 0:00:28]} 36. Qh6+ {[%emt 0:02:09]} Kg8 {[%emt 0:00:01]} 37. Ng3 {[%emt 0:00:45]} f1=Q {[%emt 0:01:01]} 38. Nxf1 {[%emt 0:00:13]} Rxf1 {[%emt 0:00:13]} 39. Qe6+ {[%emt 0:00:22]} Rf7 {[%emt 0:00:55]} 40. Qxd6 {[%emt 0:00:35]} Qe4+ {[%emt 0:30:08]} 41. Kb2 {[%emt 0:30:31]} Qd4+ {[%emt 0:00:15]} 42. Kc2 {[%emt 0:00:13]} Qe4+ {[%emt 0:00:00]} 43. Kb2 {[%emt 0:00:00]} Qg2 {[%emt 0:00:00]} 44. Kc2 {[%emt 0:00:00]} Qxh2 {[%emt 0:00:00]} 45. Qe6 {[%emt 0:00:00]} Qh7+ {[%emt 0:00:00]} 46. Kb2 {[%emt 0:00:00]} Qf5 {[%emt 0:00:00]} 47. Qxa6 {[%emt 0:00:00]} Qd3 {[%emt 0:00:00]} 48. Qc8+ {[%emt 0:00:00]} Kh7 {[%emt 0:00:00]} 49. Qc2 {[%emt 0:00:00]} Qxc2+ {[%emt 0:00:00]} 50. Kxc2 {[%emt 0:00:00]} Rd7 {[%emt 0:00:00]} 51. Bc3 {[%emt 0:00:00]} Rxd5 {[%emt 0:00:00]} 52. Kb3 {[%emt 0:00:00]} Rd3 {[%emt 0:00:00]} 53. Kc2 {[%emt 0:00:00]} e4 {[%emt 0:00:00]} 0-1